bitfinex/quotes_ETHUSD_20220123
["timestamp","ask_amount","ask_price","bid_price","bid_amount"]
[1642929886841,0.04035807,2537.5,2537.0,0.59091426]
[1642929887139,0.04035807,2537.5,2537.1,0.09735]
[1642929887340,0.04035807,2537.5,2537.2,0.569]
[1642929887545,5.807e-05,2537.5,2537.4,5.84735]
[1642929887742,5.807e-05,2537.5,2537.4,9.83738497]
[1642929887941,5.807e-05,2537.5,2537.4,11.18804002]
[1642929888143,5.807e-05,2537.5,2537.4,2.38845]
[1642929888346,5.807e-05,2537.5,2537.4,3.38845]
[1642929889145,5.807e-05,2537.5,2537.4,3.08845]
[1642929889345,5.807e-05,2537.5,2537.4,3.38845]
[1642929889780,5.807e-05,2537.5,2537.4,2.38845]
[1642929889986,5.807e-05,2537.5,2537.4,6.5017692]
[1642929890185,5.807e-05,2537.5,2537.4,26.95595]
[1642929890487,5.807e-05,2537.5,2537.4,3.38845]
[1642929891887,5.807e-05,2537.5,2537.4,26.79845]
[1642929894035,5.807e-05,2537.5,2537.4,3.38845]
[1642929894435,5.807e-05,2537.5,2537.4,26.79845]
[1642929895542,5.807e-05,2537.5,2537.4,27.39734834]
[1642929895945,0.01987112,2538.6,2537.4,34.89922172]
[1642929896141,0.01987112,2538.6,2538.1,7.118]
[1642929896348,5.169,2539.1,2538.1,7.118]
[1642929896349,5.3876069,2539.9,2538.5,5.75]
[1642929896544,9.31408423,2540.1,2538.7,0.03740229]
[1642929896545,1.20779151,2540.0,2538.7,0.03740229]
[1642929896742,1.20779151,2540.0,2539.5,23.41]
[1642929896743,0.27,2540.0,2539.5,23.41]
[1642929896942,0.27,2540.0,2539.6,0.94044495]
[1642929897282,0.27,2540.0,2539.7,23.41]
[1642929897483,0.27,2540.0,2539.9,0.09735]
[1642929897686,0.27,2540.0,2539.9,24.22034091]
[1642929897883,0.27,2540.0,2539.9,0.569]
[1642929898083,0.27,2540.0,2539.5,0.569]
[1642929898482,1.34238513,2539.9,2539.5,0.569]
[1642929898682,1.34238513,2539.9,2539.2,0.569]
[1642929898885,2.49496563,2539.5,2539.2,0.569]
[1642929899687,1.18459624,2539.5,2539.2,0.569]
[1642929900291,2.35,2539.4,2538.9,0.54001297]
[1642929900487,1.18459624,2539.5,2538.9,0.54001297]
[1642929900688,1.39058379,2539.3,2538.9,0.54001297]
[1642929901340,1.38727471,2539.1,2538.9,0.54001297]
[1642929901556,1.38727471,2539.1,2538.2,0.53124994]
[1642929901740,1.38727471,2539.1,2538.2,0.13819997]
[1642929901741,5.75,2538.9,2538.2,0.13819997]
[1642929901945,5.75,2538.9,2537.9,0.569]
[1642929901946,0.1574,2538.8,2537.9,0.569]
[1642929902140,0.1574,2538.8,2537.5,0.66635]
[1642929902340,1.15326314,2538.2,2537.6,26.45959002]
[1642929902540,0.1574,2538.8,2537.6,23.41]
[1642929902741,0.1574,2539.0,2537.8,23.41]
[1642929902940,0.1574,2539.0,2537.9,3.77609002]
[1642929903140,11.0152,2539.7,2538.0,23.50735]
[1642929903141,0.1574,2539.6,2538.0,23.50735]
[1642929903342,0.1574,2539.6,2538.1,3.77609002]
[1642929903644,1.29972116,2539.4,2538.3,0.01226327]
[1642929903841,1.29972116,2539.4,2538.5,23.41]
[1642929904046,0.1574,2539.6,2538.7,23.41]
[1642929904241,3.7269,2539.7,2538.8,0.66635]
[1642929904442,0.1574,2539.8,2538.8,1.66635]
[1642929904643,1.51504678,2539.4,2538.8,1.73805]
[1642929905085,2.42696803,2539.0,2538.8,1.6407]
[1642929905288,1.2944154,2539.0,2538.8,1.6407]
[1642929905484,0.1574,2539.7,2538.8,1.6407]
[1642929905687,0.1574,2539.7,2538.9,2.96161595]
[1642929905990,0.27,2540.0,2538.8,1.6407]
[1642929905991,0.27,2540.0,2539.0,24.53385]
[1642929906186,0.27,2540.0,2539.0,1.42385]
[1642929906384,0.27,2540.0,2539.1,4.01636852]
[1642929906590,0.27,2540.0,2539.2,0.7265]
[1642929906591,1.54024852,2540.0,2539.2,0.7265]
[1642929906786,1.54024852,2540.0,2539.2,0.82385]
[1642929907088,0.27,2540.0,2539.2,1.42385]
[1642929907387,0.27,2540.0,2539.3,3.15456849]
[1642929907687,0.03339862,2540.2,2539.5,7.118]
[1642929907886,0.03339862,2540.2,2539.6,0.82375]
[1642929908087,1.48312051,2539.7,2539.6,1.7264]
[1642929908288,1.48312051,2539.7,2539.6,0.569]
[1642929908540,1.48312051,2539.7,2539.3,0.13819997]
[1642929908541,1.64062051,2539.7,2539.3,0.569]
[1642929908733,0.1575,2539.6,2539.1,0.1575]
[1642929908931,1.48312051,2539.7,2539.1,0.1575]
[1642929908932,1.46310295,2539.5,2539.1,0.1575]
[1642929909332,0.1575,2539.4,2539.1,0.1575]
[1642929909532,1.46310295,2539.5,2539.1,0.1575]
[1642929909533,1.29661013,2539.2,2539.1,0.1575]
[1642929909939,1.29661013,2539.2,2539.1,2.5075]
[1642929910150,0.1575,2539.7,2539.1,0.25485]
[1642929910339,0.1575,2540.1,2539.2,0.66635]
[1642929910538,0.03339862,2540.2,2539.2,0.66635]
[1642929910539,0.03339862,2540.2,2539.3,3.01636852]
[1642929910738,0.03339862,2540.2,2539.4,0.66635]
[1642929910739,1.47677561,2540.1,2539.4,0.66635]
[1642929910938,1.47677561,2540.1,2539.4,1.26635]
[1642929911140,1.43311954,2539.7,2539.4,0.869]
[1642929911337,1.43311954,2539.7,2539.4,0.569]
[1642929911540,1.43311954,2539.7,2539.4,1.169]
[1642929911742,1.43311954,2539.7,2539.4,0.569]
[1642929912139,2.938712,2539.7,2539.4,0.569]
[1642929912392,2.938712,2539.7,2539.4,0.869]
[1642929912887,2.938712,2539.7,2539.4,1.169]
[1642929913087,2.938712,2539.7,2539.4,0.569]
[1642929913288,2.938712,2539.7,2539.0,0.09735]
[1642929913289,2.938712,2539.7,2539.0,0.569]
[1642929913489,0.157,2539.6,2538.6,0.569]
[1642929913688,0.157,2539.6,2538.7,0.09735]
[1642929913888,0.157,2539.6,2538.7,3.03723474]
[1642929914091,0.157,2539.6,2538.4,0.09735]
[1642929914092,0.1696447,2539.6,2538.4,0.09735]
[1642929914295,0.1696447,2539.6,2538.3,0.13819997]
[1642929914491,1.49978357,2539.5,2538.3,0.13819997]
[1642929914690,1.29985219,2538.4,2538.3,0.13819997]
[1642929914895,0.1575,2539.5,2538.4,3.5738921]
[1642929915094,1.28750288,2539.2,2538.4,3.5738921]
[1642929915293,0.28409181,2539.9,2538.4,3.5738921]
[1642929915294,0.1575,2539.1,2538.4,3.5738921]
[1642929915494,0.19724,2539.9,2538.4,3.5738921]
[1642929915495,0.1575,2539.8,2538.5,23.883]
[1642929915694,0.1575,2540.0,2538.6,0.25485]
[1642929915895,0.1575,2540.0,2538.7,23.883]
[1642929915896,1.3777589,2539.8,2538.7,23.883]
[1642929916137,0.1575,2540.0,2538.8,1.240176]
[1642929916336,4.11240233,2540.2,2539.0,0.01222624]
[1642929916337,1.18102246,2539.9,2539.0,0.01222624]
[1642929916535,1.18102246,2539.9,2539.1,0.473]
[1642929916939,1.18102246,2539.9,2539.1,0.87035]
[1642929917134,1.10011121,2539.5,2539.1,0.473]
[1642929917532,1.18576886,2539.4,2539.1,0.473]
[1642929917934,1.18576886,2539.4,2539.1,0.773]
[1642929918137,3.7648,2540.1,2539.1,0.773]
[1642929918335,3.6798673,2540.2,2539.1,1.073]
[1642929918735,3.6798673,2540.2,2539.1,0.473]
[1642929918938,3.6798673,2540.2,2538.8,0.1575]
[1642929918939,0.19724,2540.1,2538.8,0.1575]
[1642929919138,0.28409181,2540.1,2538.8,0.1575]
[1642929919336,1.22080243,2540.0,2538.8,0.1575]
[1642929919542,1.11966862,2538.9,2538.8,0.1575]
[1642929919781,0.08685181,2540.0,2538.8,0.1575]
[1642929919782,1.45768611,2539.0,2538.8,0.1575]
[1642929920386,0.19724,2539.9,2538.8,0.1575]
[1642929920589,3.6798673,2540.2,2538.8,0.1575]
[1642929920793,3.6798673,2540.2,2540.1,100.0]
[1642929920988,1.45524714,2540.2,2540.1,100.0]
[1642929921390,0.19724,2540.3,2540.1,100.0]
[1642929921691,1.26493652,2540.6,2540.2,0.04970524]
[1642929922587,1.4450792,2540.4,2540.2,0.04970524]
[1642929922788,0.0085529,2540.7,2540.1,100.0]
[1642929922991,0.0085529,2540.7,2540.1,100.473]
[1642929923851,1.39904077,2540.2,2540.1,100.473]
[1642929924860,5.69904077,2540.2,2540.1,100.0]
[1642929925060,5.69904077,2540.2,2540.1,19.50988165]
[1642929925061,7.16143562,2540.2,2540.1,19.50988165]
[1642929925256,5.71143562,2540.2,2540.1,19.50988165]
[1642929925456,1.41143562,2540.2,2540.1,5.36968165]
[1642929925660,1.39904077,2540.2,2540.1,5.36968165]
[1642929926260,0.0085529,2540.7,2540.1,5.36968165]
[1642929926462,0.4585529,2541.0,2540.2,5.75]
[1642929926858,0.4585529,2541.0,2540.2,7.05524006]
[1642929927058,0.4585529,2541.0,2540.1,5.84268165]
[1642929927296,0.01225742,2540.9,2540.1,5.36968165]
[1642929927491,0.09910923,2540.9,2540.1,5.36968165]
[1642929927892,0.01225742,2540.9,2540.1,5.36968165]
[1642929928093,1.38898927,2540.8,2540.1,5.36968165]
[1642929928995,5.75,2540.6,2539.3,0.1574]
[1642929929195,5.75,2540.6,2538.7,3.00440762]
[1642929929196,0.0120277,2539.9,2538.7,3.00440762]
[1642929929396,5.75,2540.6,2538.8,0.57035]
[1642929929397,0.01125397,2540.5,2538.8,0.57035]
[1642929929596,1.41121718,2539.1,2538.9,3.16180762]
[1642929929910,1.41121718,2539.1,2538.5,6.3143]
[1642929929911,4.51121718,2539.1,2538.7,0.1575]
[1642929930104,0.00377845,2539.0,2538.4,3.6712421]
[1642929930301,1.41121718,2539.1,2538.4,3.3535921]
[1642929930801,0.01239787,2539.6,2538.6,1.18934347]
[1642929931046,0.01239787,2539.6,2538.4,3.3535921]
[1642929931237,0.19724,2539.5,2538.4,3.1035921]
[1642929931437,1.1741,2539.5,2538.4,3.1035921]
[1642929931638,0.09968,2539.4,2538.4,3.1035921]
[1642929931836,5.09968,2539.4,2538.2,0.3163]
[1642929932035,1.43801429,2539.1,2538.2,0.3163]
[1642929932237,1.17110279,2538.3,2538.2,0.3163]
[1642929932642,0.09968,2539.0,2538.2,0.3163]
[1642929933741,0.09968,2539.3,2538.2,0.3163]
[1642929934781,1.2889943,2539.2,2537.5,0.01268272]
[1642929934996,5.0,2539.0,2537.5,0.01268272]
[1642929935188,5.0,2539.0,2537.0,3.8676]
[1642929935189,5.0,2538.6,2537.0,3.8676]
[1642929935389,5.0,2538.6,2536.7,0.01262233]
[1642929935390,0.02492814,2538.5,2536.7,0.01262233]
[1642929935588,1.02492814,2538.5,2536.8,3.8312]
[1642929935788,1.0,2538.5,2536.8,3.8312]
[1642929935989,1.39007025,2537.4,2536.9,2.93469638]
[1642929936188,4.22917277,2538.1,2536.9,2.93469638]
[1642929936391,0.09968,2538.2,2536.9,2.93469638]
[1642929936795,0.09968,2538.2,2536.9,1.54328804]
[1642929937290,1.38228112,2537.5,2536.9,1.54328804]
[1642929937496,0.09968,2538.2,2536.9,1.54328804]
[1642929937696,0.09968,2539.0,2538.0,1.22265197]
[1642929937894,1.1741,2539.5,2538.0,1.22265197]
[1642929937895,1.1741,2539.5,2538.1,3.6267872]
[1642929938092,1.1741,2539.5,2538.6,0.01251028]
[1642929938391,1.1741,2539.5,2538.7,0.473]
[1642929938647,1.1741,2539.5,2539.2,1.54572136]
[1642929938843,1.1741,2539.5,2539.2,0.473]
[1642929939047,0.09968,2539.3,2538.4,0.1575]
[1642929939848,0.01202729,2539.1,2538.4,0.0001]
[1642929940053,5.75,2539.0,2537.3,1.97288566]
[1642929940249,5.75,2539.0,2537.4,0.19704]
[1642929940648,5.75,2539.0,2537.3,1.9855151]
[1642929940649,5.84968,2539.0,2537.3,1.9855151]
[1642929940852,5.84968,2539.0,2537.3,0.473]
[1642929940853,1.55444616,2537.6,2537.3,0.473]
[1642929941051,0.09968,2538.4,2537.3,0.473]
[1642929941251,1.141,2538.9,2537.3,0.473]
[1642929941449,1.141,2538.9,2537.3,0.48512128]
[1642929941450,0.1573,2538.8,2537.3,0.48512128]
[1642929941655,0.09968,2538.7,2537.3,0.48512128]
[1642929941849,0.1574,2538.6,2537.3,1.60750624]
[1642929942051,1.55835112,2537.8,2537.3,0.48512128]
[1642929942288,0.1574,2538.6,2537.3,0.48512128]
[1642929942487,0.09968,2538.6,2537.3,0.48512128]
[1642929942692,0.1575,2538.5,2537.3,0.55539928]
[1642929943288,1.18913358,2538.2,2537.3,0.55539928]
[1642929944092,0.1575,2538.5,2537.3,0.55539928]
[1642929944293,1.24068,2538.9,2537.3,0.55539928]
[1642929944294,0.25718,2538.7,2537.3,0.543278]
[1642929944891,0.25718,2538.7,2537.4,0.19704]
[1642929944892,0.1575,2538.7,2537.4,0.19704]
[1642929945093,1.22690583,2538.3,2537.9,1.52657559]
[1642929946045,1.22690583,2538.3,2537.4,1.1575]
[1642929946240,1.22690583,2538.3,2537.4,1.0]
[1642929946540,1.22690583,2538.3,2537.3,0.38287692]
[1642929946739,1.22690583,2538.3,2537.6,1.15614464]
[1642929946939,1.22690583,2538.3,2537.3,0.38287692]
[1642929946940,4.64767957,2539.0,2538.7,0.04417478]
[1642929947140,0.157,2539.0,2538.7,0.04417478]
[1642929947947,1.2742558,2538.9,2538.6,98.77309417]
[1642929948144,0.1574,2538.8,2538.6,98.77309417]
[1642929949141,0.16072475,2538.8,2538.6,84.63109417]
[1642929949788,0.1574,2538.8,2538.6,84.63109417]
[1642929949988,0.2662,2539.1,2538.6,84.63109417]
[1642929950387,0.2662,2539.1,2538.7,1.57189216]
[1642929950593,0.2662,2539.1,2538.7,3.30535216]
[1642929950793,0.2662,2539.1,2538.8,4.63593742]
[1642929951188,0.2662,2539.1,2538.8,1.45421702]
[1642929951590,0.2662,2539.1,2538.8,2.75421702]
[1642929951790,0.2662,2539.1,2538.8,1.45421702]
[1642929952191,0.2662,2539.1,2538.9,3.00306599]
[1642929952791,0.1572,2540.0,2538.9,3.30306599]
[1642929952994,0.157,2540.4,2539.0,0.82054376]
[1642929953202,0.157,2540.4,2539.1,4.39427665]
[1642929953396,0.157,2540.4,2539.2,0.53428877]
[1642929953638,0.157,2540.4,2539.3,3.58439954]
[1642929953838,0.157,2540.4,2539.6,1.18608028]
[1642929954045,1.52760362,2539.8,2539.6,1.18608028]
[1642929954245,1.52760362,2539.8,2539.3,0.473]
[1642929954447,1.52760362,2539.8,2539.0,0.13819997]
[1642929954845,0.1575,2539.7,2539.0,0.13819997]
[1642929955244,1.52760362,2539.8,2539.0,0.13819997]
[1642929955449,0.53523862,2539.4,2539.0,2.42707549]
[1642929955645,0.53523862,2539.4,2539.0,1.24650715]
[1642929956048,6.0,2540.6,2539.0,1.24650715]
[1642929956049,0.1575,2539.9,2539.1,3.24732441]
[1642929956247,0.1575,2540.6,2539.1,3.24732441]
[1642929956448,0.09968,2540.5,2539.1,3.24732441]
[1642929956647,0.1574,2540.4,2539.1,3.24732441]
[1642929957047,0.1574,2540.4,2539.0,1.24650715]
[1642929957048,1.42829851,2539.5,2539.0,1.24650715]
[1642929957285,1.42829851,2539.5,2539.0,0.13819997]
[1642929957994,0.1575,2540.0,2539.0,0.13819997]
[1642929958395,0.09968,2540.1,2539.0,0.13819997]
[1642929958595,0.1572,2540.0,2539.0,0.13819997]
[1642929958993,1.35594303,2539.9,2539.0,0.13819997]
[1642929959193,0.70689921,2539.1,2538.6,84.63109417]
[1642929959591,0.70689921,2539.1,2538.6,85.80820306]
[1642929960193,0.70689921,2539.1,2538.6,85.79963208]
[1642929960592,0.25668,2539.8,2538.6,85.79963208]
[1642929960793,0.25668,2539.8,2538.7,2.98993026]
[1642929961054,0.34353181,2539.8,2538.7,2.98993026]
[1642929961242,0.34353181,2539.8,2538.8,0.04417171]
[1642929961546,0.34353181,2539.8,2538.7,6.84153857]
[1642929961741,0.34353181,2539.8,2539.0,1.23906454]
[1642929962145,0.24385181,2539.8,2539.0,4.28616806]
[1642929962342,0.24385181,2539.8,2539.0,1.23906454]
[1642929962742,0.24385181,2539.8,2538.6,84.63109417]
[1642929962743,0.09968,2539.7,2538.6,84.63109417]
[1642929962943,5.0,2539.5,2538.6,84.63109417]
[1642929963144,0.6305,2539.4,2538.6,84.63109417]
[1642929963352,0.09968,2539.3,2538.6,84.63109417]
[1642929963542,5.17,2540.2,2538.6,84.63109417]
[1642929963543,0.1575,2539.2,2538.6,84.63109417]
[1642929963749,0.1575,2539.8,2539.5,1.12793871]
[1642929963943,0.1575,2539.8,2539.0,1.54980075]
[1642929964345,0.1575,2540.0,2539.0,1.54980075]
[1642929964545,0.1575,2540.1,2539.0,1.54980075]
[1642929964789,0.1575,2540.1,2539.6,1.09982282]
[1642929964994,0.1575,2540.1,2539.0,3.16850586]
[1642929965194,0.1575,2540.1,2539.8,1.53756574]
[1642929965594,0.1575,2540.1,2539.0,3.16850586]
[1642929965794,0.1575,2540.1,2538.9,5.19146625]
[1642929965994,0.1575,2540.1,2539.2,1.46951428]
[1642929966496,0.83163034,2539.5,2539.1,1.14305601]
[1642929966696,0.83163034,2539.5,2538.7,3.9717]
[1642929967694,0.93131034,2539.5,2538.7,3.9717]
[1642929967897,1.1764944,2539.1,2538.7,1.21366208]
[1642929968196,1.1764944,2539.1,2538.6,85.02259417]
[1642929968197,0.157,2539.0,2538.6,85.02259417]
[1642929968848,0.09968,2539.4,2538.6,85.02259417]
[1642929969045,0.1569,2539.7,2538.6,85.02259417]
[1642929969643,0.09968,2539.6,2538.6,85.02259417]
[1642929969847,0.1572,2539.5,2538.9,1.2910811]
[1642929970246,0.1572,2539.5,2538.7,3.6846]
[1642929970849,0.1572,2539.5,2538.8,1.37361875]
[1642929971054,0.1572,2539.5,2538.7,3.6846]
[1642929971250,1.10900288,2538.9,2538.7,3.6846]
[1642929971457,1.10900288,2538.9,2538.6,85.02259417]
[1642929972692,10.84968,2538.7,2538.6,70.48349417]
[1642929972891,10.84968,2538.7,2538.6,56.28679417]
[1642929973191,6.00688,2538.7,2538.6,56.28679417]
[1642929974789,0.09968,2538.7,2538.6,56.28679417]
[1642929975291,0.157,2538.8,2538.6,56.28679417]
[1642929975493,1.20868288,2538.9,2538.6,56.28679417]
[1642929976148,1.10900288,2538.9,2538.6,56.28679417]
[1642929979553,0.25708,2539.2,2538.6,56.28679417]
[1642929979808,1.2337,2539.8,2538.8,0.06888598]
[1642929979809,0.1572,2539.5,2538.8,0.06888598]
[1642929980013,1.33338,2539.8,2538.8,0.08163779]
[1642929980014,0.09968,2539.8,2538.8,0.08163779]
[1642929980213,0.20593589,2539.9,2538.8,0.08163779]
[1642929980414,3.81514049,2540.2,2538.8,1.08163779]
[1642929980615,1.1595875,2539.5,2539.4,1.19496444]
[1642929981220,1.1595875,2539.5,2538.9,3.23203308]
[1642929981419,1.1595875,2539.5,2538.8,1.01275181]
[1642929981725,5.89411757,2539.4,2538.6,45.85077906]
[1642929981916,0.90325474,2538.9,2538.6,45.85077906]
[1642929982914,0.1575,2539.3,2538.6,45.85077906]
[1642929983547,5.93653181,2539.4,2538.6,45.85077906]
[1642929983841,1.33209061,2538.7,2538.6,45.85077906]
[1642929984348,4.43177061,2538.7,2538.6,45.85077906]
[1642929984546,7.18177061,2538.7,2538.6,34.28877906]
[1642929984745,4.43177061,2538.7,2538.6,34.28877906]
[1642929985449,1.33209061,2538.7,2538.6,34.28877906]
[1642929985843,0.09968,2539.1,2538.6,34.28877906]
[1642929986044,0.09968,2539.1,2538.6,34.17974602]
[1642929986952,1.45716216,2539.0,2538.6,34.17974602]
[1642929987149,0.157,2538.9,2538.6,34.17974602]
[1642929987391,4.55,2538.7,2538.6,34.17974602]
[1642929987891,4.64968,2538.7,2538.6,34.17974602]
[1642929988292,0.25668,2538.9,2538.6,34.17974602]
[1642929988499,1.95306328,2539.4,2538.6,34.17974602]
[1642929988500,0.67979147,2539.4,2538.6,34.17974602]
[1642929988695,0.58011147,2539.4,2538.6,34.17974602]
[1642929988897,0.67979147,2539.4,2538.6,34.17974602]
[1642929989097,2.23503758,2539.3,2538.6,34.17974602]
[1642929989300,1.39163208,2539.1,2538.6,34.17974602]
[1642929989502,0.25718,2539.0,2538.6,34.17974602]
[1642929989698,0.25718,2539.0,2537.8,3.39095804]
[1642929989699,5.0,2538.9,2537.8,3.39095804]
[1642929989902,5.0,2538.9,2537.3,4.026378]
[1642929989903,0.01295175,2538.2,2537.3,4.026378]
[1642929990101,1.10707892,2537.5,2537.3,0.070278]
[1642929990299,0.01295175,2538.2,2537.3,0.070278]
[1642929990300,0.09968,2537.7,2537.3,0.070278]
[1642929990498,0.25728,2539.0,2537.3,0.070278]
[1642929990698,0.09968,2538.8,2537.6,0.01217542]
[1642929990900,5.0,2538.6,2537.3,0.070278]
[1642929991142,5.0,2538.6,2537.4,4.25]
[1642929991143,0.3,2538.6,2537.4,4.25]
[1642929991345,0.3,2538.7,2537.5,3.3188383]
[1642929991540,0.08685181,2538.7,2537.3,0.08231215]
[1642929991739,0.3,2538.9,2537.4,1.410072]
[1642929991941,0.3,2538.9,2537.5,3.3188383]
[1642929992144,1.28626,2539.0,2537.4,1.410072]
[1642929992341,0.08685181,2538.8,2537.3,0.08231215]
[1642929992542,0.08685181,2538.8,2537.3,0.070278]
[1642929992543,0.55985181,2538.8,2537.3,0.070278]
[1642929992843,0.10368598,2538.7,2537.3,0.070278]
[1642929993141,0.55985181,2538.6,2537.3,0.070278]
[1642929993342,1.47746561,2538.5,2537.3,0.070278]
[1642929993543,0.3,2538.4,2537.3,0.070278]
[1642929993744,0.58537663,2537.4,2537.3,0.070278]
[1642929993945,3.9402,2538.3,2537.3,0.070278]
[1642929994147,4.02705181,2538.3,2537.3,0.070278]
[1642929994796,1.0,2538.2,2537.3,0.070278]
[1642929996798,1.08685181,2538.2,2537.3,0.070278]
[1642929996998,0.98661,2538.1,2537.3,0.070278]
[1642929997200,5.0,2537.6,2537.3,7.8e-05]
[1642929997405,5.8,2537.4,2536.4,3.39201203]
[1642929997699,5.8,2537.4,2536.0,3.33208606]
[1642929997897,1.36019777,2536.9,2536.5,1.47423798]
[1642929998555,1.36019777,2536.9,2536.2,1.1722455]
[1642929998748,3.2021,2537.4,2536.2,1.1722455]
[1642929999049,1.0,2537.3,2536.4,0.02514303]
[1642929999250,23.41,2538.0,2535.9,3.48958606]
[1642929999251,1.473,2538.0,2535.9,3.48958606]
[1642929999451,1.473,2538.0,2536.0,4.73472606]
[1642929999452,0.01252863,2537.9,2536.0,4.73472606]
[1642929999650,0.773,2538.0,2536.4,0.01260766]
[1642929999651,1.85985181,2538.0,2536.4,0.01260766]
[1642929999851,2.15985181,2538.0,2536.4,0.01260766]
[1642930000153,1.29809057,2537.4,2536.6,1.33078201]
[1642930001352,1.29809057,2537.4,2536.9,1.12726884]
[1642930001753,1.98675,2538.0,2536.9,1.12726884]
[1642930002151,2.23634991,2537.9,2536.9,1.12726884]
[1642930002404,2.53634991,2537.9,2536.9,1.12726884]
[1642930002608,1.0,2537.8,2536.9,1.12726884]
[1642930003010,1.54003993,2537.5,2537.0,1.49307437]
[1642930003612,1.54003993,2537.5,2536.4,3.71540766]
[1642930004012,4.22662034,2537.4,2536.4,3.71540766]
[1642930004213,4.2132989,2537.4,2536.4,3.71540766]
[1642930004414,1.54003993,2537.5,2536.4,3.7028]
[1642930004613,0.52280231,2537.0,2536.6,1.35930702]
[1642930004814,0.52280231,2537.0,2536.3,4.9982]
[1642930005014,0.52280231,2537.0,2536.0,0.0121835]
[1642930005213,0.52280231,2537.0,2535.9,0.00261429]
[1642930005416,0.52280231,2537.0,2535.7,4.26919994]
[1642930005816,0.01296692,2537.1,2535.7,5.40875709]
[1642930006051,0.01296692,2537.1,2535.7,4.26919994]
[1642930006253,0.98692,2537.3,2535.7,5.51129994]
[1642930006452,2.28692,2537.3,2535.7,5.51129994]
[1642930006653,1.28692,2537.3,2535.7,5.51129994]
[1642930006855,1.51845093,2536.4,2536.0,1.21301713]
[1642930007055,4.3077,2537.2,2536.0,1.21301713]
[1642930007256,4.9077,2537.2,2536.0,4.54510319]
[1642930007456,4.9077,2537.2,2536.3,1.41774546]
[1642930007457,3.3077,2537.2,2536.3,1.41774546]
[1642930007855,0.3,2537.3,2536.3,1.41774546]
[1642930008064,1.27004261,2537.1,2536.7,1.11325802]
[1642930008259,0.6,2537.5,2536.7,1.11325802]
[1642930008657,0.01270453,2537.7,2536.7,2.4472015]
[1642930008959,3.6296,2538.1,2536.8,3.32742027]
[1642930009161,3.1566,2538.1,2536.7,2.4472015]
[1642930009357,1.48225739,2537.7,2537.3,1.42769775]
[1642930009556,1.48225739,2537.7,2536.7,1.33394348]
[1642930009788,1.48225739,2537.7,2536.5,5.08574451]
[1642930009993,1.48225739,2537.7,2536.5,3.8637]
[1642930009994,0.01961251,2537.6,2536.5,3.8637]
[1642930010194,0.31961251,2537.6,2536.5,3.8637]
[1642930010394,0.3,2537.6,2536.5,3.8637]
[1642930010598,0.58058485,2536.9,2536.5,5.07852436]
[1642930010795,0.3,2537.7,2536.5,5.07852436]
[1642930010796,0.3,2537.7,2536.6,3.23482627]
[1642930010995,0.3,2537.9,2536.6,3.24709445]
[1642930011194,1.6,2538.0,2536.6,6.87759445]
[1642930011495,1.6,2538.0,2536.6,6.97485424]
[1642930011496,1.68685181,2538.0,2536.6,6.97485424]
[1642930011695,0.08685181,2538.0,2536.6,6.97485424]
[1642930011895,1.38747314,2537.6,2537.2,1.54776921]
[1642930013001,1.98747314,2537.6,2536.6,3.6305]
[1642930013205,0.01530431,2537.5,2536.6,3.6305]
[1642930013401,1.38747314,2537.6,2536.6,3.6305]
[1642930013643,1.98747314,2537.6,2536.6,3.6305]
[1642930014043,0.6,2537.6,2536.8,1.44254212]
[1642930014246,1.0,2538.0,2536.8,1.44254212]
[1642930014443,1.3,2538.0,2536.8,1.44254212]
[1642930014643,1.68685181,2538.0,2536.8,1.44254212]
[1642930015247,1.19306815,2537.6,2536.7,3.5588998]
[1642930015546,1.19306815,2537.6,2536.7,0.01294477]
[1642930016148,1.19306815,2537.6,2537.0,1.46105623]
[1642930016350,1.19306815,2537.6,2536.7,1.36791969]
[1642930017286,1.19306815,2537.6,2536.7,2.96791969]
[1642930017488,1.19306815,2537.6,2537.0,1.37678589]
[1642930018291,1.19306815,2537.6,2536.7,1.36791969]
[1642930018488,1.19306815,2537.6,2536.7,1.66791969]
[1642930018690,1.19306815,2537.6,2536.7,2.96791969]
[1642930018897,1.6,2538.0,2536.7,2.96791969]
[1642930019102,1.6,2538.0,2536.8,3.29977662]
[1642930019296,1.6,2538.0,2536.7,1.36791969]
[1642930019698,1.6,2538.0,2536.7,1.33071211]
[1642930019999,1.27013602,2537.5,2537.1,1.4384281]
[1642930020196,1.27013602,2537.5,2536.6,3.6305]
[1642930020400,1.87013602,2537.5,2536.6,3.6305]
[1642930021247,1.87013602,2537.5,2536.8,1.46760696]
[1642930021848,1.87013602,2537.5,2536.9,0.02422341]
[1642930022054,1.87013602,2537.5,2536.8,1.46760696]
[1642930022248,1.87013602,2537.5,2536.6,8.22316319]
[1642930022448,1.87013602,2537.5,2536.6,4.89107713]
[1642930022848,1.0,2537.7,2537.0,1.23160928]
[1642930023050,1.0,2537.7,2536.6,3.6305]
[1642930023051,0.3,2537.6,2536.6,3.6305]
[1642930023452,0.61268664,2537.9,2536.6,3.6305]
[1642930023651,4.18694646,2538.1,2536.6,7.56573746]
[1642930023850,1.09785077,2537.7,2537.4,1.44138382]
[1642930024251,1.09785077,2537.7,2536.7,8.1852763]
[1642930024451,1.09785077,2537.7,2536.7,0.01225702]
[1642930025298,0.96499147,2537.3,2537.0,1.49522208]
[1642930025499,0.96499147,2537.3,2536.7,1.32873024]
[1642930025896,1.0,2538.0,2536.7,1.32873024]
[1642930026103,2.23643719,2537.9,2536.7,1.32873024]
[1642930026498,2.53643719,2537.9,2536.7,1.32873024]
[1642930026698,1.0,2537.8,2536.7,1.31647322]
[1642930026900,1.28965622,2536.9,2536.6,3.6305]
[1642930027099,0.00387188,2536.8,2536.2,7.5692]
[1642930027299,1.28965622,2536.9,2535.9,7.66087381]
[1642930027498,1.58965622,2536.9,2535.9,7.66087381]
[1642930027699,1.28965622,2536.9,2535.9,7.66087381]
[1642930027901,1.28965622,2536.9,2536.1,1.3301146]
[1642930028124,1.28965622,2536.9,2536.5,1.34028227]
[1642930028300,1.28965622,2536.9,2536.1,1.3301146]
[1642930029446,1.28965622,2536.9,2536.3,1.26322855]
[1642930029645,0.01232508,2537.4,2536.3,1.26322855]
[1642930030048,0.20609546,2537.7,2536.3,1.86322855]